Cogmind - Beta 15 @@@ ROGUE MODE // 2025.05.09 @ 14:27:45 Player: L-470 Result: Self-destructed Performance ------------- Evolutions (6) 3000 Regions Visited (8) 1600 Robots Destroyed (16) 80 Value Destroyed (297) 297 Prototype IDs (8) 160 Alien Tech Used (1) 200 Bonus (800) 800 TOTAL SCORE: 6137 Bonus ------- Registered with UFD 300 Met Optimus in HQ 500 Cogmind --------- Core Integrity 885/1150 Matter 187/300 Energy 1/100 System Corruption 0% Temperature Cool (0) Movement Core (50) Location -4/Factory Parts ------- > --- POWER (2) -------- (None) > --- PROPULSION (6) --- Advanced Medium Treads Advanced Medium Treads > --- UTILITY (9) ------ Experimental Signal Interpreter Advanced Melee Analysis Suite Transmission Jammer Hacking Suite Improved Hacking Suite Improved Component Analysis Suite > --- WEAPON (2) ------- (None) > --- INVENTORY (5) ---- Faulty Cooled Nuclear Pulse Thruster Advanced Sensor Array Faulty Precision Matter Filter Phasing Sabre Botcube Peak State ------------ > --- POWER ------------ Light Ion Engine > --- PROPULSION ------- Flight Unit Flight Unit Cooled Nuclear Pulse Thruster Nuclear Pulse Array > --- UTILITY ---------- Machine Analyzer Advanced Sensor Array Experimental Signal Interpreter Seismic Detector Transmission Jammer Hacking Suite Improved Hacking Suite > --- WEAPON ----------- Dispersion Rifle Phasing Sabre > --- INVENTORY -------- Improved Sensor Array Advanced Sensor Array Precision Matter Filter CPS Tube Botcube [Rating: 66] Favorites ----------- Power Light Ion Engine Engine Light Ion Engine Propulsion Light Treads Treads Light Treads Leg Aluminum Leg Wheel Compact Wheel Flight Unit Flight Unit Utility Seismic Detector Device Seismic Detector Storage Small Storage Unit Processor Experimental Signal Interpreter Hackware Hacking Suite Weapon EM Pulse Gun Energy Gun EM Pulse Gun Ballistic Gun Light Assault Rifle Launcher Grenade Launcher Impact Weapon Power Maul Slashing Weapon Phasing Sabre Build | -11 -10 -10 -10 -7 -5 -5 -5 -4 ------- Run | Yrd Mat Min Sub Scr Fac Upp Upp Fac Slots Evolved 12 | . . . . . 10 . . 2 Power 1 | . . . . . 1 . . . Propulsion 4 | . . . . . 4 . . . Utility 7 | . . . . . 5 . . 2 Weapon . | . . . . . . . . . Parts Attached 35 | 1 3 4 . 3 17 2 . 5 Power 2 | . . 1 . . 1 . . . Engine 2 | . . 1 . . 1 . . . Core . | . . . . . . . . . Reactor . | . . . . . . . . . Propulsion 12 | . 2 1 . 2 4 . . 3 Treads 5 | . 1 1 . 1 . . . 2 Leg . | . . . . . . . . . Wheel 2 | . 1 . . 1 . . . . Hover . | . . . . . . . . . Flight 5 | . . . . . 4 . . 1 Utility 14 | 1 . . . 1 10 . . 2 Device 7 | 1 . . . . 5 . . 1 Storage 1 | . . . . 1 . . . . Processor 4 | . . . . . 3 . . 1 Hackware 2 | . . . . . 2 . . . Protection . | . . . . . . . . . Artifact . | . . . . . . . . . Weapon 7 | . 1 2 . . 2 2 . . Energy Gun 3 | . 1 1 . . . 1 . . Energy Cannon . | . . . . . . . . . Ballistic Gun 1 | . . 1 . . . . . . Ballistic Cannon . | . . . . . . . . . Launcher 1 | . . . . . 1 . . . Special Weapon . | . . . . . . . . . Impact Weapon 1 | . . . . . 1 . . . Slashing Weapon 1 | . . . . . . 1 . . Piercing Weapon . | . . . . . . . . . Special Melee Weapon . | . . . . . . . . . Unidentified Prototypes 2 | . . . . . . 1 . 1 Parts Lost 13 | . 1 . . . 5 . . 7 Power 3 | . 1 . . . 1 . . 1 Propulsion 6 | . . . . . 3 . . 3 Utility 3 | . . . . . . . . 3 Weapon 1 | . . . . . 1 . . . Highest Loss Streak 6 | . 1 . . . 2 . . 6 To Critical Strikes . | . . . . . . . . . Average Backups 7 | 6 5 7 7 9 3 4 4 4 Power . | 1 1 1 1 1 . . . . Propulsion 2 | 4 1 3 3 3 . . . . Utility 2 | . . 1 2 2 1 3 3 2 Weapon 1 | 1 2 1 1 2 . . . . Tool/Special . | . . . . . . . . . Unused Backups 18 | 6 4 . . 2 3 . . 3 Power 3 | 1 2 . . . . . . . Propulsion 3 | 2 1 . . . . . . . Utility 5 | 1 . . . 2 . . . 2 Weapon 6 | 2 1 . . . 3 . . . Tool/Special 1 | . . . . . . . . 1 Average Slot Usage (%) 91 | . 99 88 100 100 78 70 76 53 Engine 10 | . 13 3 14 14 4 5 5 2 Treads 10 | . 13 14 14 14 4 . . 1 Wheel 10 | . 13 14 14 14 3 . . . Flight 4 | . . . . . 14 17 17 9 Device 14 | . 14 14 14 14 15 16 17 12 Storage 9 | . 14 14 14 14 . . . . Processor 3 | . . . . . 11 11 11 9 Hackware 2 | . . . . . 8 11 11 10 Energy Gun 11 | . 19 24 14 14 . . 5 3 Ballistic Gun 8 | . 8 3 14 14 . . . . Impact Weapon 1 | . . . . . 4 4 . . Peak Build Rating 66 | 7 7 9 9 14 53 59 59 66 Average Rating 19 | 6 6 7 9 9 40 51 59 50 On Entrance 24 | 6 7 7 9 9 14 50 59 59 Naked Turns . | . . . . . . . . . Heaviest Build 27 | 12 13 12 12 27 27 16 16 16 Greatest Support 60 | 20 16 20 20 22 21 21 21 60 Greatest Overweight (x) 3 | . . . . 2 2 . . 3 Average Overweight (x) . | . . . . . . . . . Largest Inventory Capacity 15 | 8 8 8 8 15 15 5 5 5 Average Capacity 8 | 8 8 8 8 10 5 5 5 5 Most Carried 15 | 7 8 8 8 15 15 5 5 5 Average Carried 7 | 6 5 7 8 9 4 5 5 4 Final Capacity 15 | 8 8 8 8 15 5 5 5 5 Final Carried 15 | 7 8 8 8 15 5 5 5 5 Class Distribution -------------------- 72% | Mutant 15% | Hacker-Ninja 4% | Hacker-Assassin 3% | Scout Dominant Class ---------------- Mutant | -10/Materials Mutant | -10/Mines Mutant | -10/Subcaves Mutant | -7/Scraptown Hacker-Ninja | -5/Factory Hacker-Ninja | -5/Upper Caves Hacker-Ninja | -5/Upper Caves Hacker-Assassin | -4/Factory Resources | -11 -10 -10 -10 -7 -5 -5 -5 -4 ----------- Run | Yrd Mat Min Sub Scr Fac Upp Upp Fac Matter Collected 461 | 205 43 26 . 50 . 137 . . Remotely . | . . . . . . . . . Salvage Created 600 | 81 325 82 . . 112 . . . Parts 31 | 7 14 10 . . . . . . Haulers Intercepted 1 | . . . . . 1 . . . Recyclers Shooed . | . . . . . . . . . Parts Field Recycled . | . . . . . . . . . Retrieved Matter . | . . . . . . . . . Parts Self-Destructed 2 | . . . . . . 2 . . Prevented . | . . . . . . . . . Kills | -11 -10 -10 -10 -7 -5 -5 -5 -4 ------- Run | Yrd Mat Min Sub Scr Fac Upp Upp Fac Combat Hostiles Destroyed 6 | . 4 2 . . . . . . Guns 6 | . 4 2 . . . . . . Classes Destroyed 8 | 2 3 2 . . 1 . . . Worker 2 | . . 2 . . . . . . Tunneler 1 | 1 . . . . . . . . Hauler 1 | . . . . . 1 . . . Recycler 2 | 1 1 . . . . . . . Operator 3 | . 2 . . . 1 . . . Watcher 1 | . 1 . . . . . . . Swarmer 2 | . . 2 . . . . . . Grunt 4 | . 4 . . . . . . . Best Kill Streak 4 | 1 4 2 . . 1 . . . Combat Bots Only 2 | . 2 2 . . . . . . Max Kills in Single Turn 1 | 1 1 1 . . 1 . . . Gunslinging . | . . . . . . . . . Exploded . | . . . . . . . . . Melee . | . . . . . . . . . Uniques/NPCs Destroyed . | . . . . . . . . . Combat | -11 -10 -10 -10 -7 -5 -5 -5 -4 -------- Run | Yrd Mat Min Sub Scr Fac Upp Upp Fac Hostile Shots Fired 141 | . 27 8 . . 40 2 . 64 Missed 59 | . 10 3 . . 13 1 . 32 Hits 82 | . 17 5 . . 27 1 . 32 Projectile 82 | . 17 5 . . 27 1 . 32 Damage Taken 1313 | . 230 38 . . 398 19 . 628 Core 422 | . 45 24 . . 88 . . 265 Absorbed by Shields . | . . . . . . . . . Core Remaining (%) 87 | 100 . . . 72 . . 91 . Volleys Fired 37 | 8 15 11 . . 1 1 . 1 Largest 2 | 2 2 2 . . 1 1 . 1 Hottest 88 | 60 80 80 . . 30 88 . 88 Shots Fired 61 | 12 30 16 . . 1 1 . 1 Gun 60 | 12 30 16 . . . 1 . 1 Cannon . | . . . . . . . . . Launcher 1 | . . . . . 1 . . . Special . | . . . . . . . . . Kinetic 14 | 8 . 6 . . . . . . Thermal 2 | . . . . . . 1 . 1 Explosive 1 | . . . . . 1 . . . Electromagnetic 44 | 4 30 10 . . . . . . Robot Hit Streak 8 | 2 5 8 . . . . . 2 Robot Miss Streak 3 | 2 2 3 . . . . . . Penetration Max . | . . . . . . . . . Secondary Targets 2 | . 1 1 . . . . . . Max Gunslinging Chain 1 | . 1 1 . . . . . . Shots Hit Robots 45 | 8 18 10 . . 2 . . 7 Core Hits 21 | 4 12 5 . . . . . . Critical Kills . | . . . . . . . . . Critical Parts Destroyed . | . . . . . . . . . Critical Strikes 3 | . 1 . . . . . . 2 Corrupt 1 | . 1 . . . . . . . Sever 2 | . . . . . . . . 2 Melee Attacks 57 | . . . . . 34 12 . 11 Impact 46 | . . . . . 34 12 . . Slashing 11 | . . . . . . . . 11 Piercing . | . . . . . . . . . Sneak Attacks 2 | . . . . . 2 . . . Combat Hostiles . | . . . . . . . . . Follow-up Attacks . | . . . . . . . . . Damage Inflicted 999 | 76 340 100 . . 210 . . 273 Guns 491 | 76 288 100 . . . . . 27 Cannons . | . . . . . . . . . Explosions 28 | . 28 . . . . . . . Melee 456 | . . . . . 210 . . 246 Ramming 24 | . 24 . . . . . . . Kinetic 80 | 37 . 43 . . . . . . Thermal 55 | . 28 . . . . . . 27 Explosive . | . . . . . . . . . Electromagnetic 384 | 39 288 57 . . . . . . Impact 210 | . . . . . 210 . . . Slashing 246 | . . . . . . . . 246 Piercing . | . . . . . . . . . Highest Corruption . | . . . . . . . . . Average Corruption . | . . . . . . . . . Corruption Purged . | . . . . . . . . . Corruption Blocked . | . . . . . . . . . Overload Shots . | . . . . . . . . . Overflow Damage 191 | . . . . . 191 . . . Projectiles . | . . . . . . . . . Explosions 11 | . . . . . 11 . . . Melee 180 | . . . . . 180 . . . Knockbacks . | . . . . . . . . . Impact . | . . . . . . . . . Kinetic . | . . . . . . . . . Secondary . | . . . . . . . . . Self-Inflicted Damage 51 | . 11 . . . 40 . . . Shots 1 | . . . . . 1 . . . Rammed 4 | . 4 . . . . . . . Targets Rammed 4 | . 4 . . . . . . . Kicked . | . . . . . . . . . Crushed . | . . . . . . . . . Highest Temperature 146 | 40 146 12 . . . 29 . 20 Average Temperature 49 | 18 70 5 . . . 16 . 15 Received Heat Transfer 168 | . 120 . . . 21 9 . 18 Siege Activations . | . . . . . . . . . Martial Activations . | . . . . . . . . . Shielding Activations . | . . . . . . . . . Robots Disrupted . | . . . . . . . . . Combat Hostiles . | . . . . . . . . . Robots Corrupted 1 | . . . . . 1 . . . Combat Hostiles . | . . . . . . . . . Parts Fried 5 | . 2 . . . 3 . . . Impact Corruptions 3 | . . . . . 3 . . . Robots Melted . | . . . . . . . . . Combat Hostiles . | . . . . . . . . . Parts Melted . | . . . . . . . . . Heat Transferred 87 | . 50 . . . . . . 37 Parts Sabotaged . | . . . . . . . . . Parts Stolen . | . . . . . . . . . Parts Stripped . | . . . . . . . . . Power Chain Reactions 1 | . 1 . . . . . . . Alert | -11 -10 -10 -10 -7 -5 -5 -5 -4 ------- Run | Yrd Mat Min Sub Scr Fac Upp Upp Fac Maximum Alert Level . | . . . . . . . . . Low Security (%) 100 | 100 100 100 . . 100 . . 100 Level 1 . | . . . . . . . . . Level 2 . | . . . . . . . . . Level 3 . | . . . . . . . . . Level 4 . | . . . . . . . . . Level 5 . | . . . . . . . . . High Security . | . . . . . . . . . Max Security . | . . . . . . . . . Peak Influence 65 | 5 62 65 . . 45 . . 39 Initial 29 | . 3 22 . . . . . 29 Average 9 | . 11 10 . . 8 . . 12 Influence Increases 583 | 10 150 75 . . 188 120 . 40 Destroy 0b10 Robot/C 120 | . 80 40 . . . . . . Destroy 0b10 Robot/NC 50 | 10 20 10 . . 10 . . . Destroy Leader 44 | . 32 10 . . 2 . . . Successful Hack 20 | . . . . . 10 . . 10 Disable Machine 30 | . . . . . 30 . . . Destroy Structure 79 | . 3 . . . 76 . . . Lose Combat Pursuer 240 | . 15 15 . . 60 120 . 30 Influence Decreases 573 | 5 96 134 . . 188 61 12 77 Entered New Map 69 | . 2 37 . . . . 12 18 Time Decay 464 | 5 84 97 . . 167 61 . 50 Lost Part 40 | . 10 . . . 21 . . 9 Squads Dispatched 8 | . 3 . . . 2 . . 3 Investigation 2 | . 1 . . . . . . 1 Extermination 1 | . . . . . 1 . . . Reinforcement 5 | . 2 . . . 1 . . 2 Assault . | . . . . . . . . . Garrison . | . . . . . . . . . Intercept . | . . . . . . . . . Searches Triggered . | . . . . . . . . . Construction Impeded . | . . . . . . . . . Haulers Reinforced 1 | . . . . . . . . 1 Active Scanning Responses . | . . . . . . . . . Cargo Convoy Interrupts . | . . . . . . . . . Stealth | -11 -10 -10 -10 -7 -5 -5 -5 -4 --------- Run | Yrd Mat Min Sub Scr Fac Upp Upp Fac Distress Signals 3 | . 1 1 . . . . . 1 Communications Jammed . | . . . . . . . . . Distress Signals . | . . . . . . . . . Times Spotted 46 | . 12 3 . . 10 8 . 13 Peak Tracking Total 13 | . 4 3 . . 5 5 . 13 Tactical Retreats 9 | . 1 1 . . 4 2 . 1 Traps | -11 -10 -10 -10 -7 -5 -5 -5 -4 ------- Run | Yrd Mat Min Sub Scr Fac Upp Upp Fac Traps Triggered 3 | . 1 . . . 2 . . . Indirectly . | . . . . . . . . . Trap Hack Attempts . | . . . . . . . . . Triggered . | . . . . . . . . . Disarmed . | . . . . . . . . . Reprogrammed . | . . . . . . . . . Reused . | . . . . . . . . . Traps Extracted . | . . . . . . . . . Installed . | . . . . . . . . . Triggered . | . . . . . . . . . Machines | -11 -10 -10 -10 -7 -5 -5 -5 -4 ---------- Run | Yrd Mat Min Sub Scr Fac Upp Upp Fac Machines Disabled 5 | . 1 . . . 2 2 . . Max in Single Turn 1 | . 1 . . . 1 1 . . Garrison Access 2 | . . . . . 2 . . . Machines Repaired . | . . . . . . . . . Machines Dismantled . | . . . . . . . . . Machines Sabotaged . | . . . . . . . . . Overloaded Fab Kills . | . . . . . . . . . Hacking | -11 -10 -10 -10 -7 -5 -5 -5 -4 --------- Run | Yrd Mat Min Sub Scr Fac Upp Upp Fac Machines Accessed 16 | . 1 1 . 3 6 4 . 1 Terminals 3 | . 1 . . . . 1 . 1 Fabricators . | . . . . . . . . . Repair Stations 1 | . . . . . 1 . . . Recycling Units 2 | . . . . . 2 . . . Scanalyzers 1 | . . . . . 1 . . . Garrison Access 2 | . . . . . 2 . . . Total Hacks 38 | . 2 1 . 12 10 10 . 3 Successful 33 | . 2 1 . 12 7 10 . 1 Failed 5 | . . . . . 3 . . 2 Catastrophic . | . . . . . . . . . Database Lockouts . | . . . . . . . . . Manual 5 | . 2 . . . . . . 3 Terminals 6 | . 2 . . . . 1 . 3 Fabricators . | . . . . . . . . . Repair Stations 2 | . . . . . 2 . . . Recycling Units 2 | . . . . . 2 . . . Scanalyzers 2 | . . . . . 2 . . . Garrison Access 4 | . . . . . 4 . . . Terminal Hacks 24 | . 1 1 . 12 . 10 . . Record 21 | . . . . 12 . 9 . . Open Door 2 | . . 1 . . . 1 . . Terminal Index 1 | . 1 . . . . . . . Fabricator Hacks . | . . . . . . . . . Repair Station Hacks 1 | . . . . . 1 . . . Scan Component 1 | . . . . . 1 . . . Recycling Unit Hacks 2 | . . . . . 2 . . . Retrieve Components 2 | . . . . . 2 . . . Scanalyzer 2 | . . . . . 2 . . . Insert Component 1 | . . . . . 1 . . . Analyze 1 | . . . . . 1 . . . Garrison Access Hacks 2 | . . . . . 2 . . . Seal Access 2 | . . . . . 2 . . . Unauthorized Hacks 2 | . 1 . . . . . . 1 Terminals 2 | . 1 . . . . . . 1 Botnet 2 | . 1 . . . . . . 1 Fabricators . | . . . . . . . . . Repair Stations . | . . . . . . . . . Recycling Units . | . . . . . . . . . Scanalyzers . | . . . . . . . . . Garrison Access . | . . . . . . . . . Data Cores Recovered . | . . . . . . . . . Used . | . . . . . . . . . Hacking Detections 5 | . 1 . . . 3 . . 1 Full Trace Events 1 | . . . . . . . . 1 Feedback Events . | . . . . . . . . . Feedback Blocked . | . . . . . . . . . Robot Schematics Acquired . | . . . . . . . . . Robots Built . | . . . . . . . . . Authchips . | . . . . . . . . . Time . | . . . . . . . . . Total Robot Build Rating . | . . . . . . . . . Part Schematics Acquired 1 | . . . . . 1 . . . Parts Built . | . . . . . . . . . Authchips . | . . . . . . . . . Time . | . . . . . . . . . Total Part Build Rating . | . . . . . . . . . Parts Repaired . | . . . . . . . . . Time . | . . . . . . . . . Parts Recycled . | . . . . . . . . . Recycled Matter . | . . . . . . . . . Retrieved Matter . | . . . . . . . . . Retrieved Components . | . . . . . . . . . Parts Scanalyzed 1 | . . . . . 1 . . . Part Schematics Acquired 1 | . . . . . 1 . . . Parts Damaged . | . . . . . . . . . Bothacking | -11 -10 -10 -10 -7 -5 -5 -5 -4 ------------ Run | Yrd Mat Min Sub Scr Fac Upp Upp Fac Used RIF Installer . | . . . . . . . . . Robots Hacked . | . . . . . . . . . Non-combat . | . . . . . . . . . Combat . | . . . . . . . . . Robot Hacks Applied . | . . . . . . . . . Relay Couplers Released . | . . . . . . . . . Fabnet Peak Effective % . | . . . . . . . . . Robots Rewired . | . . . . . . . . . Allies Hacked . | . . . . . . . . . Hacks Repelled . | . . . . . . . . . Allies | -11 -10 -10 -10 -7 -5 -5 -5 -4 -------- Run | Yrd Mat Min Sub Scr Fac Upp Upp Fac Total Allies . | . . . . . . . . . Largest Group . | . . . . . . . . . Highest-Rated Group . | . . . . . . . . . Highest-Rated Ally . | . . . . . . . . . Total Orders . | . . . . . . . . . Ally Attacks . | . . . . . . . . . Total Damage . | . . . . . . . . . Kills . | . . . . . . . . . Allies Corrupted . | . . . . . . . . . Allies Melted . | . . . . . . . . . Intel | -11 -10 -10 -10 -7 -5 -5 -5 -4 ------- Run | Yrd Mat Min Sub Scr Fac Upp Upp Fac Active Infowar (turns) 6090 | 11 633 444 154 3141 904 660 6 137 Sensors 1702 | . . . . . 899 660 6 137 Seismic 5333 | 11 633 444 154 3141 904 46 . . Machine Analysis 1696 | . . . . . 896 660 6 134 Jamming 99 | . . . . . 90 9 . . Robot Analysis Total . | . . . . . . . . . Derelict Logs Recovered 5 | . . 2 . . . 2 1 . Drone Launches . | . . . . . . . . . Drone Recoveries . | . . . . . . . . . Exploration | -11 -10 -10 -10 -7 -5 -5 -5 -4 ------------- Run | Yrd Mat Min Sub Scr Fac Upp Upp Fac Turns Passed 6211 | 77 633 444 154 3141 904 660 6 192 Spaces Moved 4821 | 47 231 391 97 2200 799 849 17 190 Core 48 | . . . . . 2 . . 46 Treads 1381 | . . 25 97 1240 . . . 19 Legs 47 | 47 . . . . . . . . Wheels 1902 | . 231 366 . 960 345 . . . Hover . | . . . . . . . . . Flight 1443 | . . . . . 452 849 17 125 Fastest Speed 34 | 120 100 100 160 115 34 34 34 34 Average Speed 103 | 120 100 103 160 141 70 34 34 78 Slowest Speed 280 | 120 100 160 160 225 120 34 34 280 Overloaded Moves . | . . . . . . . . . Propulsion Burnouts . | . . . . . . . . . Robots Hopped . | . . . . . . . . . Potential Cave-ins 4 | . . . . . 4 . . . Cave-ins Triggered . | . . . . . . . . . Exploration Rate (%) 38 | 4 42 79 11 93 22 79 6 9 Regions Visited 8 Branch Regions 5 Pre-discovered Areas 1 | . . 1 . . . . . . Known Exits Taken 4 | . . 1 . . 1 1 1 . Unknown Exits Taken 4 | 1 1 . 1 1 . . . . Scrap Searched 6 | . . 1 . 4 . 1 . . Spaces Dug 36 | . . . . . 30 6 . . Terrain Destroyed 50 | . 3 . . . 41 6 . . Melee 36 | . . . . . 30 6 . . Projectile . | . . . . . . . . . AOE 14 | . 3 . . . 11 . . . Terrain Rammed . | . . . . . . . . . Walls Destroyed . | . . . . . . . . . Machines Disabled . | . . . . . . . . . Actions | -11 -10 -10 -10 -7 -5 -5 -5 -4 --------- Run | Yrd Mat Min Sub Scr Fac Upp Upp Fac Total 5884 | 56 603 414 96 2225 1067 1193 16 214 Wait 877 | . 340 5 . 6 199 326 . 1 Move 4813 | 46 230 390 96 2199 798 848 16 190 Hop . | . . . . . . . . . Pick Up 21 | 1 6 1 . 10 2 . . 1 Fast Attach 20 | 1 . 1 . 2 7 4 . 5 Attach 10 | . . . . . 10 . . . Detach 4 | . . . . . 3 . . 1 Swap 11 | . 3 3 . 1 4 . . . Drop 28 | . 5 3 . 5 9 2 . 4 Fire 37 | 8 15 11 . . 1 1 . 1 Melee 57 | . . . . . 34 12 . 11 Ram 4 | . 4 . . . . . . . Kick . | . . . . . . . . . Crush . | . . . . . . . . . Escape Stasis . | . . . . . . . . . Rewire 2 | . . . . 2 . . . . Trap . | . . . . . . . . . Miscellaneous . | . . . . . . . . . Route ------- -11/Scrapyard -10/Materials -10/Mines -10/Subcaves -7/Scraptown (discovered 2 exits: *Fac x2) -5/Factory -5/Upper Caves -5/Upper Caves -4/Factory History --------- Turn | Location | Event 7 | -11/Scrapyard | Discovered new exit (range 3) 78 | -11/Scrapyard | Entered Materials 313 | -10/Materials | Build established: Mutant 643 | -10/Materials | Discovered new exit (range 14) 711 | -10/Materials | Entered Mines 715 | -10/Mines | YI-UF0 nonchalantly dropped a Grenade Launcher on the ground 798 | -10/Mines | Learned location of Mines (-9) 812 | -10/Mines | Identified exit to Subcaves 1000 | -10/Mines | Assembled infested the area 1107 | -10/Mines | Found the Drone Emporium 1114 | -10/Mines | Found Prototype Device 1155 | -10/Mines | Entered Subcaves 1156 | -10/Subcaves | Approached by a straggling Scientist 1301 | -10/Subcaves | Scientist uncovered a shortcut to Scraptown 1309 | -10/Subcaves | Entered Scraptown 1745 | -7/Scraptown | Discovered new exit (range 9) 1823 | -7/Scraptown | Visited IN-MT5's Study 1908 | -7/Scraptown | Visited Cave Peace 2240 | -7/Scraptown | Visited Comm Corps 2320 | -7/Scraptown | Visited Spacefarers 2432 | -7/Scraptown | Visited The Evicted 2502 | -7/Scraptown | Visited Awakened 2566 | -7/Scraptown | Visited Shadow of the Wyrm 2638 | -7/Scraptown | Visited UFD Registry 2638 | -7/Scraptown | Registered with UFD as "Electrochassis" 2713 | -7/Scraptown | Visited Chapter 10 2769 | -7/Scraptown | Visited LU-1G1's Boring Crew 2857 | -7/Scraptown | Visited Scrapoid Research Area 3051 | -7/Scraptown | Visited Junk Repository 3085 | -7/Scraptown | Visited Scrap Suit Storage 3138 | -7/Scraptown | Visited Infowarlord's Domain 3171 | -7/Scraptown | Visited A0-MCA Data Center 3182 | -7/Scraptown | Given a B+ rating by A0-MCA 3443 | -7/Scraptown | Found Exp. Signal Interpreter 4191 | -7/Scraptown | Visited Botcube Research 4200 | -7/Scraptown | Found Botcube 4220 | -7/Scraptown | Visited Curators Association 4377 | -7/Scraptown | Met Optimus 4377 | -7/Scraptown | Accepted into 0bPrime 4444 | -7/Scraptown | Discovered new exit (range 5) 4450 | -7/Scraptown | Entered Factory 4450 | -5/Factory | Evolved 10 slots: Power x1, Propulsion x4, Utility x5 4762 | -5/Factory | Spotted B-75 Beast 5341 | -5/Factory | Discovered new exit (range 14) 5353 | -5/Factory | Identified exit to Upper Caves 5354 | -5/Factory | Entered Upper Caves 5389 | -5/Upper Caves | Found Alien Artifact 5389 | -5/Upper Caves | Identified Dimensional Node Initializer 5389 | -5/Upper Caves | Initialized slip node 5412 | -5/Upper Caves | Build established: Hacker-Ninja 5598 | -5/Upper Caves | Learned Factory security intel 5701 | -5/Upper Caves | Entered an active Warlord outpost 5706 | -5/Upper Caves | Learned Armory trap positions 5706 | -5/Upper Caves | Learned Extension emergency access door positions 5706 | -5/Upper Caves | Learned Extension stockpile data 5706 | -5/Upper Caves | Learned Factory garrison access intel 5868 | -5/Upper Caves | Learned Factory terminal intel 6000 | -5/Upper Caves | Discovered new exit (range 13) 6013 | -5/Upper Caves | Identified exit to Upper Caves 6014 | -5/Upper Caves | Entered another Upper Caves area 6015 | -5/Upper Caves | Identified exit to Factory 6018 | -5/Upper Caves | Learned location of 1 exit from Proximity Caves 6020 | -5/Upper Caves | Entered Factory 6020 | -4/Factory | Evolved 2 slots: Utility x2 6022 | -4/Factory | Loaded intel: 26 terminal locations 6023 | -4/Factory | Loaded intel: 4 garrison access locations 6188 | -4/Factory | Lost 6 parts (3n3u) 6212 | -4/Factory | Self-destructed Last Messages --------------- 06157_ Penetrated by Slug. 06157_ Slug penetrates Wall. 06157_ Penetrated by Slug. 06157_ Adv. Sensor Array destroyed. 06162_ K-01 Serf cleans the Matter Pump. 06175_ Acquired Adv. Medium Treads. 06194_ Acquired Adv. Melee Analysis Suite. 06201_ Acquired Imp. Component Analysis Suite. 06207_ Imp. Component Analysis Suite identified Faulty Prc. Matter Filter. 06207_ Penetrated by Slug. 06207_ Slug penetrates Wall. 06209_ K-01 Serf cleans the Fabricator. 06211_ S-27 Virus destroyed. 06211_ Penetrated by Slug. 06211_ Slug penetrates Wall. 06211_ Slug penetrates S-27 Virus. 06211_ S-27 Virus destroyed. 06211_ Slug penetrates Wall. 06212_ K-01 Serf collects debris. Map ----- +----------------------------------------------------+ | ???????????????????????? #?????????????????????? | | ????????????????????????# #?????????????????????? | | ????????????????????????# #?????????????????????? | | ????????????????????????# #?????????????????????? | | ????????????????????????# #?????????????????????? | | ????????????????????????# #####+################# | | ?????????????????????#### """" | | ????????????????????? ""F" | | ??????????????########### "" ######## | | ??????????????# # """ *!!#??????? | | ??????????????# """ # k """ *!!#??????? | | ??????????????# """ # """ !! #??????? | | ??????????????# """ # h ?????? | | ??????????????# # """ """ """ #???? | | ??????????????# """ + """ """ """ #???? | | ??????????????# """ # h""" """ """ ??? | | ??????????????# """ # ####?? | | ??????????????# ## """ """ """ #????? | | ?????????????######+##### """ """ """ #????? | | ?????????????# + """ """ """ #????? | | ?????????????# # #????? | | ?????????????# # ??????? | | ?????????????# # ???????? | | ?????????????# ""Y"" # ???????? | | ?????????????# """"" # ######+### ?????????? | | ?????????????############@ #???????????????????? | | ????????????????????????# #???????????????????? | | ???????????????????????? #???????????????????? | | ??????????????????????? #???????????????????? | | ?????????????????????? ! #???????????????????? | | ?????????????????????? * #???????????????????? | | ?????????????????????" "" =%A#???????????????????? | | ??????T????????????? """[s*#???????????????????? | | ???????????????????""" F"=s #???????????????????? | | ????????????????????"" """ks #???????????????????? | | ????????????????????"" ?" ks##???????????????????? | | ?????????????????????????? sg????????????????????? | | ?????????????????????????? ????????????????????? | | ??????????????????????????## ????????????????????? | | ???????????????????????????? ????????????????????? | | ?????????????????????????????????????????????????? | | ??????????????????T"?????????????????????????????? | | ???????????????????"?????????????????????????????? | | ?????????????????????????????????????????????????? | | ?????????????????????????????????????????????????? | | ?????????????????????????????????????????????????? | | ?????????????????????????????????????????????????? | | ?????????????????????????????????????????????????? | | ?????????????????????????????????????????????????? | | ?????????????????????????????????????????????????? | +----------------------------------------------------+ Best States ------------- Heat Dissipation 43 Energy Generation 10 Energy Capacity 125 Matter Stores 300 Matter Capacity 300 Sight Range 16 Robot Scan Range 16 Terrain Scan Density 10 Jamming Range 12 Weapon Cycling 20 Evasion (%) 63 Targeting Accuracy 8 Melee Accuracy 8 Recoil Reduction 2 Offensive Hacking 22 Item Schematics ----------------- Flight Unit | -5/Factory | Scanalyzed Robot Schematics ------------------ None Fabricated ------------ Nothing Repaired ---------- Nothing Alien Tech Used ----------------- Dimensional Node Initializer Achievements -------------- Alien Tech Challenges ------------ None Game ------ Seed PowerBottomlessLegs Manual? 0 Play Time 00:49:33 Cumulative 63.4 hours Start 2025.05.09 @ 13:40:10 End 2025.05.09 @ 14:27:45 Sessions 1 Manual Loads 0 Difficulty Rogue Special Mode None Game No. 100 Rogue 90 Adventurer 10 Explorer 0 Win Type - Total 2 Types 2/0/0/0/0/0/0/0/0/0 Lore% 21 Gallery% 32 Achievement% 37 Wizard Run 0 Options --------- Layout 1 ASCII 0 Keyboard 0 Movement Numpad Keybinds 1 Fullscreen 1 Font 24/Smallcaps Map View 50x35 Zoom Use 0% Tactical HUD 1 Map Filters NONE Filters NONE Steam 1 RUN: f5bcc95b-e670-4ecc-8f50-c3e595d4319f